bitfinex/quotes_SOLUSD_20250118
["timestamp","ask_amount","ask_price","bid_price","bid_amount"]
[1737241978174,3.9146,255.45,255.41,0.58715962]
[1737241978572,7.9747,255.56,255.44,19.14733956]
[1737241978876,19.14733956,255.55,255.46,19.14733956]
[1737241979173,19.14733956,255.55,255.47,0.58706808]
[1737241979367,7.9747,255.56,255.46,19.14733956]
[1737241979368,28.93093956,255.53,255.46,19.14733956]
[1737241979571,3.9135,255.52,255.44,19.14733956]
[1737241979770,3.9135,255.52,255.45,0.587096]
[1737241979970,19.14733956,255.51,255.41,19.14733956]
[1737241980171,19.14733956,255.51,255.43,19.14733956]
[1737241980372,19.14733956,255.51,255.44,0.58708132]
[1737241980668,3.9138,255.5,255.44,0.58708132]
[1737241980875,3.9136,255.52,255.45,19.14733956]
[1737241981070,23.06013956,255.57,255.47,19.14733956]
[1737241981378,23.06013956,255.57,255.49,19.14733956]
[1737241981558,23.06013956,255.57,255.5,0.58696671]
[1737241982260,86.9126,255.58,255.52,19.14733956]
[1737241982462,19.14733956,255.58,255.5,19.73423656]
[1737241982662,19.14733956,255.58,255.5,0.586897]
[1737241982964,20.0,255.57,255.49,0.58699129]
[1737241983266,19.14733956,255.56,255.49,0.58699129]
[1737241984078,19.14733956,255.54,255.49,0.58699129]
[1737241984278,19.14733956,255.54,255.47,0.58701796]
[1737241984574,3.9134,255.53,255.47,0.58701796]
[1737241985371,3.9134,255.53,255.44,19.14733956]
[1737241985577,19.14733956,255.52,255.44,19.73444049]
[1737241986078,19.14733956,255.52,255.44,0.58710093]
[1737241986580,19.14733956,255.5,255.43,0.5871077]
[1737241986966,3.9137,255.51,255.44,19.14733956]
[1737241987156,3.9137,255.51,255.45,0.58711854]
[1737241987477,3.9137,255.51,255.44,19.14733956]
[1737241988780,3.9137,255.51,255.47,0.063]
[1737241992184,3.9128,255.57,255.5,11.96220269]
[1737241992364,3.9128,255.57,255.52,11.96220269]
[1737241992557,20.0,255.56,255.5,11.96220269]
[1737241993678,3.9131,255.55,255.48,11.96220269]
[1737241994279,20.0,255.54,255.48,11.96220269]
[1737241994976,3.9134,255.53,255.48,11.96220269]
[1737241995492,3.9134,255.53,255.47,0.063]
[1737241995665,3.9134,255.53,255.47,0.65004079]
[1737241995985,23.9136,255.52,255.47,0.65004079]
[1737241996375,3.9136,255.52,255.47,0.063]
[1737241996782,11.96220269,255.51,255.47,0.063]
[1737241997383,3.9136,255.52,255.47,0.063]
[1737242000489,11.96220269,255.51,255.47,0.063]
[1737242000785,3.9138,255.5,255.47,0.063]
[1737242001584,3.9135,255.52,255.48,11.96220269]
[1737242001791,3.9133,255.54,255.49,0.58703936]
[1737242002391,3.9133,255.54,255.47,0.65001039]
[1737242003791,3.9133,255.54,255.47,0.063]
[1737242004479,3.9133,255.54,255.47,0.65007788]
[1737242005792,3.9133,255.54,255.48,11.96220269]
[1737242005976,3.9133,255.54,255.49,0.58699989]
[1737242006175,83.0,255.55,255.5,11.96220269]
[1737242006374,11.96220269,255.61,255.52,11.96220269]
[1737242006574,15.87440269,255.61,255.53,0.58689746]
[1737242006879,3.9122,255.61,255.54,11.96220269]
[1737242007079,3.9122,255.61,255.55,0.58684262]
[1737242007281,13.56540269,255.63,255.55,0.58684262]
[1737242007480,3.9121,255.62,255.55,0.58684262]
[1737242007802,3.9121,255.62,255.56,11.96220269]
[1737242007971,20.0,255.62,255.57,0.58680012]
[1737242008175,3.9119,255.63,255.58,11.96220269]
[1737242008376,3.9119,255.63,255.59,0.58676906]
[1737242008590,3.9117,255.65,255.59,0.58676906]
[1737242008779,11.96220269,255.67,255.59,0.58676906]
[1737242009095,3.9114,255.66,255.59,0.58676906]
[1737242009584,20.0,255.64,255.59,0.58676906]
[1737242010298,3.9114,255.66,255.59,0.58676906]
[1737242010897,20.0,255.64,255.59,0.58676906]
[1737242011285,3.9114,255.66,255.59,0.58676906]
[1737242011695,11.96220269,255.65,255.53,20.0]
[1737242011991,11.96220269,255.63,255.54,12.54904299]
[1737242012175,13.69,255.66,255.56,11.96220269]
[1737242012176,11.96220269,255.65,255.56,11.96220269]
[1737242012379,11.96220269,255.65,255.57,0.58673722]
[1737242012606,3.9114,255.66,255.58,11.96220269]
[1737242012782,3.9114,255.66,255.59,0.58674296]
[1737242017583,11.96220269,255.65,255.59,0.58674296]
[1737242017783,11.96220269,255.65,255.57,0.58679269]
[1737242018283,3.9114,255.66,255.58,11.96220269]
[1737242018489,3.9114,255.66,255.59,0.58676994]
[1737242022596,3.911,255.69,255.59,24.36365394]
[1737242023306,0.03,255.7,255.59,24.36365394]
[1737242024399,0.03,255.7,255.61,4.99994293]
[1737242024607,0.03,255.7,255.68,11.96220269]
[1737242024795,0.03,255.7,255.69,0.58651471]
[1737242026286,0.03,255.7,255.69,24.36339871]
[1737242028008,0.03,255.7,255.69,36.3256014]
[1737242028406,0.03,255.7,255.69,12.5487174]
[1737242031595,0.03,255.7,255.64,0.58650012]
[1737242031795,0.03,255.7,255.66,11.96220269]
[1737242031994,0.03,255.7,255.67,0.58658481]
[1737242033506,0.03,255.7,255.68,11.96220269]
[1737242033701,0.03,255.7,255.69,0.58655242]
[1737242036306,0.03,255.7,255.67,0.5865641]
[1737242040406,0.03,255.7,255.64,11.96220269]
[1737242040717,1.6898,255.7,255.65,0.58663774]
[1737242040899,1.6898,255.7,255.63,0.58664891]
[1737242041519,3.9109,255.69,255.64,11.96220269]
[1737242041822,3.9109,255.69,255.65,0.58662975]
[1737242043109,1.6898,255.7,255.66,11.96220269]
[1737242043424,0.03,255.7,255.67,0.58653782]
[1737242043807,0.03,255.7,255.68,11.96220269]
[1737242044009,0.03,255.7,255.69,0.58655668]
[1737242044511,0.03,255.7,255.68,11.96220269]
[1737242044710,0.03,255.7,255.69,0.5865682]
[1737242045431,0.03,255.7,255.69,0.58656302]
[1737242046518,0.03,255.7,255.67,0.58656024]
[1737242049020,0.03,255.7,255.66,11.96220269]
[1737242049218,0.03,255.7,255.64,11.96220269]
[1737242049412,0.03,255.7,255.65,0.58664136]
[1737242050311,0.03,255.7,255.64,11.96220269]
[1737242050511,0.03,255.7,255.65,0.58659709]
[1737242053331,0.03,255.7,255.6,0.64962894]
[1737242053532,0.03,255.7,255.62,7.64354504]
[1737242053733,0.03,255.7,255.63,0.58665129]
[1737242054618,20.0,255.69,255.63,0.58665129]
[1737242054811,7.64354504,255.64,255.6,0.063]
[1737242055015,7.64354504,255.61,255.6,0.063]
[1737242055232,83.0,255.68,255.6,0.063]
[1737242055415,7.64354504,255.65,255.6,0.063]
[1737242055611,7.64354504,255.67,255.6,0.64972385]
[1737242056528,3.9114,255.66,255.6,0.64972385]
[1737242061430,3.9114,255.66,255.6,0.063]
[1737242061732,11.94881128,255.65,255.6,0.063]
[1737242063038,3.9112,255.67,255.6,12.01181128]
[1737242063238,3.9112,255.67,255.61,0.58671783]
[1737242063712,11.94881128,255.65,255.6,0.063]
[1737242065126,20.0,255.64,255.6,0.063]
[1737242065326,11.94881128,255.61,255.6,0.063]
[1737242066738,15.86101128,255.61,255.6,0.063]
[1737242067523,15.86101128,255.61,255.6,0.0001]
[1737242067524,39.63789528,255.61,255.6,0.0001]
[1737242067829,41.23149528,255.61,255.6,0.0001]
[1737242068421,20.0,255.56,255.47,0.063]
[1737242068621,11.94881128,255.51,255.47,0.063]
[1737242070347,3.9138,255.5,255.47,0.063]
[1737242071255,20.0,255.52,255.47,0.063]
[1737242071439,11.94881128,255.5,255.47,0.063]
[1737242071748,11.94881128,255.5,255.34,12.01181128]
[1737242071749,20.0,255.45,255.34,12.01181128]
[1737242071943,11.94881128,255.42,255.34,0.65032843]
[1737242072632,11.94881128,255.42,255.34,12.59913971]
[1737242072833,20.0,255.45,255.34,12.59913971]
[1737242073030,31.94881128,255.45,255.36,11.94881128]
[1737242073228,31.94881128,255.45,255.37,0.58728956]
[1737242073430,3.9148,255.44,255.37,0.58728956]
[1737242074447,3.9148,255.44,255.36,11.94881128]
[1737242074743,13.7018,255.44,255.36,11.94881128]
[1737242075335,11.94881128,255.43,255.34,12.01181128]
[1737242075524,3.9148,255.44,255.35,0.58736955]
[1737242075731,3.9144,255.47,255.42,11.94881128]
[1737242076243,3.9144,255.47,255.4,11.94881128]
[1737242076642,13.7002,255.47,255.4,11.94881128]
[1737242077344,13.7002,255.47,255.38,12.01181128]
[1737242078830,13.7002,255.47,255.4,11.94881128]
[1737242079350,21.35896024,255.47,255.39,7.65876024]
[1737242080445,13.7002,255.47,255.39,7.65876024]
[1737242080641,13.7002,255.47,255.4,0.58725722]
[1737242080826,13.7002,255.47,255.33,0.063]
[1737242080827,20.0,255.38,255.33,0.0001]
[1737242081026,13.68196024,255.34,255.23,0.063]
[1737242081226,7.65876024,255.29,255.23,0.063]
[1737242081443,7.65876024,255.27,255.23,0.063]
[1737242081747,0.5872,255.26,255.23,0.063]
[1737242082134,7.65876024,255.25,255.23,0.063]
[1737242082338,0.5872,255.24,255.23,0.063]
[1737242082949,4.505,255.24,255.23,0.063]
[1737242085956,4.505,255.24,255.16,12.05115761]
[1737242085957,87.505,255.24,255.07,8.23162097]
[1737242086137,86.9178,255.24,255.17,11.98815761]
[1737242087450,20.0,255.19,255.14,0.063]
[1737242087651,23.776884,255.17,255.14,0.063]
[1737242087841,11.98815761,255.15,255.14,0.063]
[1737242089258,2.1886,255.16,255.14,0.063]
[1737242089438,15.90735761,255.15,255.14,0.063]
[1737242089638,23.776884,255.14,255.12,0.063]
[1737242089839,23.776884,255.14,254.93,12.57622549]
[1737242089840,23.776884,255.08,254.93,12.57622549]
[1737242090055,11.98815761,255.02,254.93,12.57622549]
[1737242090359,0.5872,255.01,254.93,12.57622549]
[1737242091341,3.9215,255.0,254.93,12.57622549]
[1737242091760,23.776884,254.98,254.84,11.98815761]
[1737242091949,11.98815761,254.91,254.82,11.98815761]
[1737242092155,11.98815761,254.91,254.83,0.58850463]
[1737242093556,11.98815761,254.87,254.8,12.57666287]
[1737242093770,11.98815761,254.86,254.81,0.5886031]
[1737242094060,11.98815761,254.88,254.8,11.98815761]
[1737242094244,11.98815761,254.88,254.81,0.58854921]
[1737242095052,3.9235,254.87,254.81,0.58854921]
[1737242095457,11.98815761,254.83,254.81,0.03]
[1737242096150,23.776884,254.82,254.67,11.98815761]
[1737242096370,11.98815761,254.75,254.65,12.5770496]
[1737242096664,11.98815761,254.79,254.71,11.98815761]
[1737242096849,11.98815761,254.79,254.69,11.98815761]
[1737242097051,11.98815761,254.77,254.69,11.98815761]
[1737242097456,11.98815761,254.77,254.67,11.98815761]
[1737242097651,11.98815761,254.75,254.67,11.98815761]
[1737242097852,9.98815761,254.75,254.67,11.98815761]
[1737242099049,20.0,254.78,254.69,11.98815761]
[1737242099249,20.0,254.78,254.71,11.98815761]
[1737242099450,11.98815761,254.79,254.72,0.58880521]
[1737242100064,11.98815761,254.79,254.72,0.58882102]
[1737242100567,15.91295761,254.79,254.72,0.58882102]
[1737242100963,15.91295761,254.79,254.71,11.98815761]
[1737242101670,11.98815761,254.85,254.77,11.98815761]
[1737242101853,20.0,254.82,254.79,11.98815761]
[1737242102054,3.9238,254.85,254.79,11.98815761]
[1737242102354,3.9229,254.91,254.83,11.98815761]
[1737242102758,5.0,255.0,254.9,11.98815761]
[1737242102759,3.9217,254.99,254.9,11.98815761]
[1737242103063,3.9217,254.99,254.85,0.58854122]
[1737242103256,15.90985761,254.99,254.91,11.98815761]
[1737242103455,3.9217,254.99,254.91,11.98815761]
[1737242104069,23.9221,254.96,254.91,11.98815761]
[1737242104273,23.9221,254.96,254.89,11.98815761]
[1737242104471,3.9221,254.96,254.89,11.98815761]
[1737242104866,3.9219,254.98,254.91,11.98815761]
[1737242105065,3.9219,254.98,254.95,11.98815761]
[1737242105360,1.5268,255.0,254.95,19.21318072]
[1737242105361,5.4484,255.0,254.95,19.21318072]
[1737242105959,3.9216,255.0,254.95,19.21318072]
[1737242106286,19.21318072,255.0,254.93,19.21318072]
[1737242106479,19.21318072,255.0,254.9,19.21318072]
[1737242106871,20.0,254.97,254.9,19.21318072]
[1737242107672,3.9221,254.96,254.9,19.21318072]
[1737242108272,3.9221,254.96,254.91,0.5883795]
[1737242108476,20.0,254.97,254.9,19.21318072]
[1737242108870,19.21318072,254.95,254.87,19.21318072]
[1737242109185,39.21318072,254.9,254.81,0.58845321]
[1737242109477,19.21318072,254.86,254.78,19.21318072]
[1737242109687,3.9238,254.85,254.76,19.21318072]
[1737242110677,3.9238,254.85,254.79,20.0]
[1737242110980,3.9234,254.88,254.82,19.21318072]
[1737242111359,3.9234,254.88,254.72,0.58855935]
[1737242111567,3.9234,254.88,254.81,19.21318072]
[1737242111975,23.13658072,254.88,254.81,19.21318072]
[1737242112281,19.21318072,254.84,254.75,19.21318072]
[1737242112861,19.21318072,254.82,254.71,0.61871675]
[1737242113066,19.21318072,254.82,254.71,0.03]
[1737242113281,19.21318072,254.82,254.73,19.21318072]
[1737242113464,19.21318072,254.82,254.74,0.5887543]
[1737242114383,3.9244,254.81,254.73,19.21318072]
[1737242114993,39.21318072,254.77,254.71,0.61875373]
[1737242115174,19.21318072,254.75,254.71,0.03]
[1737242115877,3.9238,254.85,254.74,19.21318072]
[1737242116077,3.9238,254.85,254.82,19.21318072]
[1737242116584,3.9234,254.88,254.82,19.21318072]
[1737242116764,3.9234,254.88,254.83,0.58855788]
[1737242116967,20.0,254.84,254.78,19.21318072]
[1737242117165,19.21318072,254.85,254.76,19.21318072]
[1737242118174,3.924,254.84,254.76,19.21318072]
[1737242118669,20.0,254.82,254.76,19.21318072]
[1737242120287,19.21318072,254.85,254.76,19.21318072]
[1737242120583,3.924,254.84,254.76,19.21318072]
[1737242120772,20.0,254.82,254.76,19.21318072]
[1737242121585,3.9244,254.81,254.76,19.21318072]
[1737242122187,10.28068369,254.82,254.76,19.21318072]
[1737242122587,19.21318072,254.85,254.76,19.21318072]
[1737242122972,19.21318072,254.83,254.76,19.21318072]
[1737242123167,19.21318072,254.83,254.74,19.21318072]
[1737242123591,3.9243,254.82,254.74,19.21318072]
[1737242123798,19.21318072,254.81,254.73,19.21318072]
[1737242123984,19.21318072,254.77,254.71,0.03]
[1737242124576,19.21318072,254.75,254.71,0.03]
[1737242125783,3.9255,254.74,254.71,0.03]
[1737242125983,3.9249,254.78,254.72,19.21318072]
[1737242126295,3.9241,254.83,254.76,19.21318072]
[1737242126488,3.9241,254.83,254.79,19.21318072]
[1737242127389,1.6498,254.85,254.81,19.21318072]
[1737242127578,1.6498,254.91,254.83,19.21318072]
[1737242127779,1.6498,254.91,254.87,19.21318072]
[1737242128292,21.6498,254.91,254.87,19.21318072]
[1737242128481,3.9226,254.93,254.88,0.58847034]
[1737242128672,3.9222,254.96,254.91,19.21318072]
[1737242128977,20.0,254.95,254.92,0.5883261]
[1737242129185,20.0,254.95,254.91,19.21318072]
[1737242129392,5.6347,254.98,254.92,0.58835817]
[1737242129575,0.063,254.98,254.95,19.21318072]
[1737242129887,0.063,254.98,254.97,19.21318072]
[1737242130392,3.922,254.97,254.9,0.5881928]
[1737242130686,0.063,254.98,254.94,19.21318072]
[1737242130888,3.922,254.97,254.92,19.21318072]
[1737242131084,23.13518072,254.97,254.88,19.21318072]
[1737242131283,23.13518072,254.97,254.89,0.58844339]
[1737242131494,0.063,254.96,254.9,19.21318072]
[1737242131677,0.063,254.96,254.91,0.58830414]
[1737242132891,0.063,254.98,254.97,23.776884]
[1737242133073,0.063,254.98,254.97,43.57814874]
[1737242133271,0.063,254.98,254.97,19.80126474]
[1737242133489,0.063,254.98,254.97,19.21318072]
[1737242133691,0.063,254.98,254.95,19.21318072]
[1737242133992,0.063,254.98,254.96,0.58818516]
[1737242134181,19.21318072,255.02,254.96,0.58818516]
[1737242134902,3.9209,255.04,254.97,19.21318072]
[1737242135193,3.9209,255.04,254.92,20.0]
[1737242135194,23.13408072,255.04,254.95,19.21318072]
[1737242135395,23.13408072,255.04,254.96,0.58824578]
[1737242135590,19.21318072,255.02,254.93,19.80142708]
[1737242136902,83.0,255.13,254.93,19.80142708]
[1737242136903,5.0,255.15,254.93,19.21318072]
[1737242137097,19.21318072,255.1,255.01,19.21318072]
[1737242137275,19.21318072,255.1,255.02,0.58807817]
[1737242137474,20.0,255.07,255.02,0.58807817]
[1737242138094,19.21318072,255.1,255.02,0.58807817]
[1737242138301,19.21318072,255.06,254.97,19.80123718]
[1737242138493,19.21318072,255.04,254.9,0.58819581]
[1737242138828,3.9214,255.01,254.94,19.21318072]
[1737242138982,3.9214,255.01,254.95,0.58824518]
[1737242139176,3.9211,255.03,254.96,19.21318072]
[1737242139384,3.9211,255.03,254.98,19.21318072]
[1737242139698,3.9211,255.03,254.99,0.58815613]
[1737242140094,1.5404,255.14,255.02,23.776884]
[1737242140303,3.9195,255.13,255.09,19.21318072]
[1737242140982,3.9191,255.16,255.1,0.58793088]
[1737242141195,6.1574,255.2,255.11,19.21318072]
[1737242141196,3.9189,255.18,255.11,19.21318072]
[1737242141498,3.9189,255.18,255.13,19.21318072]
[1737242141699,0.063,255.24,255.17,19.21318072]
[1737242141889,0.063,255.24,255.15,23.776884]
[1737242141890,0.063,255.24,255.21,19.21318072]
[1737242142288,0.063,255.24,255.21,42.99006472]
[1737242142893,0.063,255.24,255.21,19.21318072]
[1737242143096,0.063,255.24,255.17,19.21318072]
[1737242143297,0.063,255.24,255.21,42.99006472]
[1737242143600,0.063,255.24,255.21,43.5776555]
[1737242144502,0.063,255.24,255.21,19.21318072]
[1737242144707,3.9812,255.22,255.16,19.21318072]
[1737242144903,0.063,255.22,255.18,19.21318072]
[1737242145099,0.063,255.22,255.19,0.58764554]
[1737242145399,0.063,255.22,255.2,19.21318072]
[1737242145612,0.063,255.22,255.21,24.36446788]
[1737242145801,0.063,255.22,255.21,43.5776486]
[1737242146283,0.063,255.22,255.21,19.8007646]
[1737242147711,0.063,255.22,255.21,0.58758388]
[1737242147905,0.063,255.22,255.17,19.21318072]
[1737242148406,0.063,255.22,255.19,19.21318072]
[1737242148609,0.063,255.22,255.18,0.58775119]
[1737242148610,0.063,255.22,255.21,19.21318072]
[1737242150301,0.063,255.22,255.16,19.80081821]
[1737242150494,3.9183,255.21,255.14,19.21318072]
[1737242150690,3.9183,255.21,255.12,0.58770811]
[1737242150691,0.063,255.22,255.2,19.21318072]
[1737242151013,0.063,255.22,255.21,0.58758888]
[1737242153587,0.063,255.22,255.21,24.36447288]
[1737242153790,0.063,255.22,255.21,29.36441581]
[1737242155193,0.063,255.24,255.23,9.99994293]
[1737242155395,1.5656,255.39,255.35,19.21318072]
[1737242155597,3.9154,255.4,255.35,19.21318072]
[1737242155801,3.9152,255.42,255.36,0.58733825]
[1737242156704,3.9152,255.42,255.36,0.51865356]
[1737242157692,3.9148,255.44,255.37,19.21318072]
[1737242157896,3.9148,255.44,255.38,0.51858001]
[1737242158098,19.21318072,255.43,255.35,19.21318072]
[1737242158305,19.21318072,255.4,255.31,19.21318072]
[1737242158498,13.7018,255.44,255.33,19.21318072]
[1737242158706,19.21318072,255.42,255.33,19.21318072]
[1737242159911,3.9152,255.41,255.33,19.21318072]
[1737242160408,19.21318072,255.4,255.22,0.51871016]
[1737242160609,19.21318072,255.34,255.27,19.21318072]
[1737242161304,19.21318072,255.4,255.31,19.21318072]
[1737242161506,19.21318072,255.44,255.35,19.21318072]
[1737242161814,3.9149,255.44,255.37,19.21318072]
[1737242162116,23.12808072,255.44,255.37,19.21318072]
[1737242163817,1.5656,255.45,255.39,19.21318072]
[1737242163998,1.5656,255.45,255.4,0.51852866]
[1737242165098,5.4802,255.45,255.4,0.51852866]
[1737242166118,3.9143,255.47,255.4,0.51852866]
[1737242166621,19.27618072,255.48,255.4,0.51852866]
[1737242166833,0.063,255.45,255.41,19.21318072]
[1737242167121,0.063,255.45,255.42,0.51845675]
[1737242168628,0.063,255.45,255.43,19.21318072]
[1737242168808,0.063,255.45,255.44,0.51838114]
[1737242169203,0.063,255.45,255.43,19.7316253]
[1737242169404,0.063,255.45,255.43,12.481531]
[1737242171007,0.063,255.48,255.47,20.0]
[1737242171209,1.57731495,255.64,255.59,23.776884]
[1737242171405,0.03,255.7,255.66,20.0]
[1737242171604,0.03,255.78,255.66,20.0]
[1737242171605,0.03,255.78,255.72,20.0]
[1737242171807,0.03,255.78,255.74,11.96308642]
[1737242172108,0.03,255.86,255.77,11.96308642]
[1737242172425,0.03,255.86,255.83,11.96308642]
[1737242172602,0.03,255.86,255.83,0.58622138]
[1737242172804,0.03,255.86,255.84,11.96308642]
[1737242173012,0.03,255.86,255.85,0.58610529]
[1737242173313,0.03,255.86,255.85,73.42922486]
[1737242173521,0.03,255.86,255.85,43.42922486]
[1737242173910,0.03,255.86,255.85,24.36298929]
[1737242174218,0.03,255.93,255.86,23.776884]
[1737242174413,0.03,255.93,255.89,20.0]
[1737242174613,0.03,255.93,255.9,0.58595473]
[1737242175029,0.03,255.93,255.89,19.06623557]
[1737242175325,0.03,255.93,255.9,0.58602549]
[1737242175510,0.03,255.93,255.86,0.58606066]
[1737242175709,0.03,255.93,255.84,128.276884]
[1737242175921,5.0,256.19,255.99,20.0]
[1737242176110,23.776884,256.18,256.16,19.06623557]
[1737242176317,3.9031,256.21,256.16,19.06623557]
[1737242176630,1.6144,256.32,256.2,19.06623557]
[1737242176806,5.5158,256.32,256.28,19.06623557]
[1737242177004,1.6144,256.32,256.3,19.06623557]
[1737242177230,1.6144,256.43,256.33,20.0]
[1737242177526,1.6144,256.43,256.39,19.06623557]
[1737242178133,1.6144,256.43,256.24,0.58500817]
[1737242178134,19.06623557,256.41,256.24,0.58500817]
[1737242178313,3.9001,256.4,256.33,19.06623557]
[1737242178511,3.8998,256.42,256.35,19.06623557]
[1737242178712,3.8998,256.42,256.36,19.06623557]
[1737242178917,20.0,256.42,256.36,19.06623557]
[1737242179123,19.06623557,256.37,256.3,0.58506218]
[1737242179322,30.89826544,256.34,256.26,0.58516893]
[1737242180227,30.89826544,256.28,256.17,30.89826544]
[1737242180426,30.89826544,256.24,256.18,0.58536948]
[1737242180631,30.89826544,256.28,256.19,30.89826544]
[1737242180821,30.89826544,256.28,256.22,20.0]
[1737242181136,30.89826544,256.28,256.23,0.58526985]
[1737242181831,30.89826544,256.36,256.23,0.58526985]
[1737242182028,30.89826544,256.28,256.23,20.58526985]
[1737242182231,30.89826544,256.26,256.21,0.58528336]
[1737242182534,30.89826544,256.26,256.23,23.776884]
[1737242182914,30.89826544,256.26,256.19,23.776884]
[1737242183115,30.89826544,256.26,256.2,0.58533436]
[1737242183315,30.89826544,256.24,256.2,0.58533436]
[1737242183532,30.89826544,256.22,256.15,0.58537483]
[1737242183726,30.89826544,256.22,256.15,20.0]
[1737242183912,30.89826544,256.22,256.17,23.776884]
[1737242184118,30.89826544,256.22,256.19,23.776884]
[1737242184925,30.89826544,256.24,256.18,0.58542331]
[1737242185121,30.89826544,256.22,256.14,30.89826544]
[1737242185330,30.89826544,256.22,256.15,0.58544835]
[1737242185531,34.80126544,256.22,256.15,0.58544835]
[1737242185829,30.89826544,256.26,256.17,30.89826544]
[1737242186030,30.89826544,256.28,256.2,23.776884]
[1737242186230,30.89826544,256.26,256.2,24.36222593]
[1737242186529,30.89826544,256.24,256.17,30.89826544]
[1737242186731,30.89826544,256.24,256.16,23.776884]
[1737242186919,30.89826544,256.24,256.18,23.776884]
[1737242187121,30.89826544,256.24,256.19,0.5853998]
[1737242187525,30.89826544,256.22,256.19,0.5853998]
[1737242187732,30.89826544,256.22,256.18,24.36230666]
[1737242187921,30.89826544,256.22,256.19,30.0]
[1737242188117,30.89826544,256.2,256.15,23.776884]
[1737242188321,30.89826544,256.18,256.12,0.58551015]
[1737242188521,30.89826544,256.16,256.1,0.58556335]
[1737242188839,30.89826544,256.14,256.05,30.89826544]
[1737242189035,30.89826544,256.14,256.06,0.58567711]
[1737242189231,30.89826544,256.14,256.07,23.776884]
[1737242189430,30.89826544,256.11,256.07,23.776884]
[1737242189832,30.89826544,256.11,256.06,0.58567711]
[1737242190035,30.89826544,256.11,256.08,23.776884]
[1737242190537,30.89826544,256.15,256.1,23.776884]
[1737242190742,30.89826544,256.15,256.12,23.776884]
[1737242191133,30.89826544,256.15,256.13,0.58556492]
[1737242191323,30.89826544,256.15,256.13,0.58555838]
[1737242191522,30.89826544,256.15,256.11,24.36244147]
[1737242191736,30.89826544,256.15,256.11,23.776884]
[1737242192656,30.89826544,256.15,256.12,0.58558488]
[1737242192944,30.89826544,256.15,256.13,23.776884]
[1737242193325,30.89826544,256.17,256.14,24.36244085]
[1737242193525,30.89826544,256.17,256.16,23.776884]
[1737242193741,30.89826544,256.21,256.16,24.36238518]
[1737242193937,30.89826544,256.18,256.13,20.5854319]
[1737242194138,30.89826544,256.18,256.14,0.58548802]
[1737242194345,30.89826544,256.18,256.15,23.776884]
[1737242194540,30.89826544,256.18,256.16,0.58548481]
[1737242195339,30.89826544,256.2,256.16,0.58548481]
[1737242195538,30.89826544,256.22,256.15,23.776884]
[1737242195832,30.89826544,256.22,256.17,23.776884]
[1737242196043,30.89826544,256.22,256.18,0.58539742]
[1737242196845,0.063,256.23,256.22,20.0]
[1737242197035,0.063,256.23,256.22,0.5852099]
[1737242197435,0.063,256.23,256.22,24.3620939]
[1737242199257,38.18206003,256.23,256.04,4.99994293]
[1737242199455,30.89826544,256.15,256.06,60.89826544]
[1737242199637,30.89826544,256.15,256.09,20.0]
[1737242199837,30.89826544,256.15,256.1,0.5855541]
[1737242200052,30.89826544,256.15,256.08,23.776884]
[1737242200246,30.89826544,256.15,256.11,20.0]
[1737242200448,30.89826544,256.15,256.12,0.58556779]
[1737242200650,30.89826544,256.15,256.07,0.58556253]
[1737242200838,30.89826544,256.15,256.01,0.58555978]
[1737242200839,30.89826544,256.08,256.01,0.58555978]
[1737242201157,2.27449459,256.14,255.92,5.0]
[1737242201158,30.89826544,256.02,255.92,0.58575221]
[1737242201369,30.89826544,255.94,255.83,30.58602816]
[1737242202042,30.89826544,255.94,255.88,20.0]
[1737242202242,30.89826544,255.94,255.89,0.58602473]
[1737242202638,30.89826544,255.96,255.89,0.58602473]
[1737242202844,30.89826544,255.96,255.9,23.776884]
[1737242203062,30.89826544,255.96,255.92,23.776884]
[1737242203361,30.89826544,255.97,255.94,23.776884]
[1737242203540,30.89826544,255.97,255.95,0.58593744]
[1737242203742,30.89826544,255.97,255.93,0.03]
[1737242203956,30.89826544,256.01,255.98,20.0]
[1737242204238,30.89826544,256.05,256.0,23.776884]
[1737242204442,30.89826544,256.05,256.01,0.58580305]
[1737242204648,30.89826544,256.07,256.01,0.58580305]
[1737242204852,30.89826544,256.03,255.98,0.58575218]